[Event "FIDE World Cup O10-A 2024"]
[Site "Batumi"]
[Date "2024.06.24"]
[Round "2.9"]
[White "Eshkol, Idan"]
[Black "Guntaka, Aayansh"]
[Result "1/2-1/2"]
[ECO "C01"]
[WhiteElo "1544"]
[BlackElo "1872"]
[Annotator "NA RC"]
[PlyCount "62"]
[EventDate "2024.06.23"]
[EventType "swiss"]
[EventCountry "GEO"]
[SourceTitle "playchess.com"]
[Source "ChessBase"]
[SourceQuality "1"]
[TimeControl "5400+30"]

1. e4 {[%emt 0:00:03]} e6 {[%emt 0:00:15]} 2. d4 {[%emt 0:00:06]} d5 {[%emt 0:00:06]} 3. exd5 {[%emt 0:00:04]} exd5 {[%emt 0:00:07]} 4. Bd3 {[%emt 0:00:06]} Bd6 {[%emt 0:00:15]} 5. Nf3 {[%emt 0:00:09]} Ne7 {[%emt 0:00:11]} 6. c3 {[%emt 0:00:32]} O-O {[%emt 0:00:24]} 7. O-O {[%emt 0:01:10]} Bf5 {[%emt 0:01:03]} 8. Re1 {[%emt 0:01:51] C01: French: Exchange Variation.} Nbc6 {[%emt 0:01:35]} 9. Bg5 {[%emt 0:00:36]} f6 {[%emt 0:00:07]} 10. Bh4 {[%emt 0:00:05]} Qd7 {[%emt 0:02:25]} 11. Bg3 {[%emt 0:03:46]} Rae8 {[%emt 0:04:26]} 12. Qc2 {[%emt 0:01:47]} Bxd3 {[%emt 0:05:49]} 13. Qxd3 {[%emt 0:00:07]} Nf5 {[%emt 0:01:27]} 14. Nbd2 {[%emt 0:02:28]} Bxg3 {[%emt 0:04:07]} 15. hxg3 {[%emt 0:00:51]} Kh8 {[%emt 0:05:36]} 16. Rxe8 {[%emt 0:04:00]} Rxe8 {[%emt 0:00:14]} 17. Re1 {[%emt 0:00:08]} Nce7 {[%emt 0:08:40]} 18. g4 {[%emt 0:18:33]} Nd6 {[%emt 0:05:30]} 19. g5 {[%emt 0:01:34]} Qg4 {[%emt 0:03:14]} 20. Nf1 {[%emt 0:10:31]} fxg5 {[%emt 0:02:47]} 21. Ng3 {[%emt 0:11:40]} (21. N1h2 $11 Qf5 22. Qxf5 Nexf5 23. Rxe8+ Nxe8 24. Nxg5) 21... Qf4 $11 {[%emt 0:06:04]} (21... h6 $15 {might be stronger.}) 22. Re5 {[%emt 0:10:12]} h6 {[%emt 0:03:53]} 23. Qe2 {[%emt 0:02:56]} Qf7 {[%emt 0:04:56]} 24. Nf1 {[%emt 0:17:55]} Ndc8 {[%emt 0:09:11]} 25. Rxg5 {[%emt 0:08:44]} hxg5 {[%emt 0:03:28]} 26. Ne5 {[%emt 0:00:06]} Qf8 {[%emt 0:02:09]} 27. Nd7 {[%emt 0:00:10]} Qf7 {[%emt 0:03:17]} 28. Ne5 {[%emt 0:00:05]} Qf8 {[%emt 0:00:23]} 29. Nd7 {[%emt 0:00:08]} Qf7 {[%emt 0:00:22]} 30. Ne5 {[%emt 0:00:08]} Qf8 {[%emt 0:00:07]} 31. Nd7 {[%emt 0:00:08]} Qf7 {[%emt 0:00:08]} 1/2-1/2

[Event "FIDE World Cup O10-A 2024"]
[Site "Batumi"]
[Date "2024.06.24"]
[Round "2.10"]
[White "Hummatov, Safa"]
[Black "Dien James"]
[Result "1-0"]
[ECO "B13"]
[WhiteElo "1693"]
[BlackElo "1419"]
[Annotator "NA RC"]
[PlyCount "45"]
[EventDate "2024.06.23"]
[EventType "swiss"]
[EventCountry "GEO"]
[SourceTitle "playchess.com"]
[Source "ChessBase"]
[SourceQuality "1"]
[TimeControl "5400+30"]

1. e4 {[%emt 0:00:01]} d5 {[%emt 0:00:05]} 2. exd5 {[%emt 0:00:05]} Nf6 {[%emt 0:00:06]} 3. c4 {[%emt 0:00:04]} c6 {[%emt 0:00:31]} 4. Nf3 {[%emt 0:00:04]} cxd5 {[%emt 0:00:13]} 5. d4 {[%emt 0:00:04]} Nc6 {[%emt 0:03:28]} 6. Be2 {[%emt 0:00:23]} Bg4 {[%emt 0:00:23]} 7. h3 {[%emt 0:00:07]} Bxf3 {[%emt 0:00:31]} 8. Bxf3 {[%emt 0:00:06]} dxc4 {[%emt 0:00:34]} 9. O-O {[%emt 0:00:35]} Qd7 {[%emt 0:00:49]} 10. Nc3 {[%emt 0:01:19]} O-O-O {[%emt 0:01:37]} 11. Be3 {[%emt 0:03:38]} Nxd4 {[%emt 0:01:56]} 12. Bxd4 {[%emt 0:00:03]} Qxd4 {[%emt 0:00:11]} 13. Qa4 {[%emt 0:00:16]} Qc5 {[%emt 0:06:07]} 14. Rac1 {[%emt 0:05:22]} Rd2 {[%emt 0:20:35]} 15. Ne4 {[%emt 0:01:38]} Nxe4 {[%emt 0:11:38]} 16. Rxc4 {[%emt 0:00:13]} Rxb2 {[%emt 0:00:18]} 17. Bxe4 {[%emt 0:00:27]} e6 {[%emt 0:01:59]} 18. Qe8+ {[%emt 0:00:08]} Kc7 {[%emt 0:01:13]} 19. Rxc5+ {[%emt 0:00:28]} Bxc5 {[%emt 0:00:06]} 20. Qxh8 {[%emt 0:00:04]} Rxa2 {[%emt 0:00:25]} 21. Qxg7 {[%emt 0:00:06]} a5 {[%emt 0:00:52]} 22. Qxf7+ {[%emt 0:00:04]} Kb6 {[%emt 0:00:10]} 23. Qxb7# {[%emt 0:00:38]} 1-0

[Event "FIDE World Cup O10-A 2024"]
[Site "Batumi"]
[Date "2024.06.24"]
[Round "2.11"]
[White "TURKI, YOUSEF HATTAN A"]
[Black "Jakhaia, Andria"]
[Result "0-1"]
[ECO "A58"]
[WhiteElo "1401"]
[BlackElo "1652"]
[Annotator "NA RC"]
[PlyCount "62"]
[EventDate "2024.06.23"]
[EventType "swiss"]
[EventCountry "GEO"]
[SourceTitle "playchess.com"]
[Source "ChessBase"]
[SourceQuality "1"]
[TimeControl "5400+30"]

1. d4 {[%emt 0:00:01]} Nf6 {[%emt 0:00:41]} 2. c4 {[%emt 0:00:16]} c5 {[%emt 0:00:14]} 3. d5 {[%emt 0:00:06]} b5 {[%emt 0:00:08]} 4. cxb5 {[%emt 0:00:50]} a6 {[%emt 0:00:09]} 5. Nc3 {[%emt 0:00:17]} axb5 {[%emt 0:00:10]} 6. Nxb5 {[%emt 0:00:23]} Ba6 {[%emt 0:00:08]} 7. Nc3 {[%emt 0:00:43]} d6 {[%emt 0:00:09]} 8. Nf3 {[%emt 0:00:37]} g6 {[%emt 0:02:22]} 9. Bg5 {[%emt 0:00:24]} Nbd7 {[%emt 0:00:32]} 10. Nd2 {[%emt 0:00:24]} Bg7 {[%emt 0:00:29]} 11. e4 {[%emt 0:00:56]} Bxf1 {[%emt 1:30:58]} 12. Nxf1 {[%emt 0:00:06]} Rb8 {[%emt 0:00:00]} 13. Qc2 {[%emt 0:01:44]} Qb6 {[%emt 0:00:00]} 14. Rb1 {[%emt 0:01:12]} Ne5 {[%emt 0:00:00]} 15. Ne3 {[%emt 0:02:19]} Qa6 {[%emt 0:00:00]} 16. Qa4+ {[%emt 0:01:32]} Qxa4 {[%emt 0:00:00]} 17. Nxa4 {[%emt 0:00:16]} Nxe4 {[%emt 0:00:00]} 18. Bh4 {[%emt 0:02:38]} Rb4 {[%emt 0:00:00]} 19. b3 {[%emt 0:02:09]} Nd3+ {[%emt 0:00:00]} 20. Ke2 {[%emt 0:01:24]} Nf4+ {[%emt 0:04:30]} 21. Ke1 {[%emt 0:06:24]} O-O {[%emt 0:00:00]} 22. f3 {[%emt 0:01:25]} Nf6 {[%emt 0:00:00]} 23. Bg3 {[%emt 0:01:24]} N4xd5 {[%emt 0:00:00]} 24. Nc2 {[%emt 0:01:17]} Rb7 {[%emt 0:00:00]} 25. Kf2 {[%emt 0:01:58]} Ra8 {[%emt 0:00:00]} 26. Rhe1 {[%emt 0:00:33]} Kf8 {[%emt 0:00:00]} 27. Ne3 {[%emt 0:01:49]} Nxe3 {[%emt 0:00:00]} 28. Kxe3 {[%emt 0:00:01]} Nd5+ {[%emt 0:00:00]} 29. Kd3 {[%emt 0:02:54]} Nb4+ {[%emt 0:00:00]} 30. Kc4 {[%emt 0:02:33]} d5+ {[%emt 0:00:00]} 31. Kxc5 {[%emt 0:00:32]} Rc8+ {[%emt 0:05:30]} 0-1

[Event "FIDE World Cup O10-A 2024"]
[Site "Batumi"]
[Date "2024.06.24"]
[Round "2.12"]
[White "Tsulaia, Giorgi"]
[Black "Wee, Yu Xi Lyndon"]
[Result "*"]
[ECO "C92"]
[WhiteElo "1646"]
[BlackElo "1408"]
[Annotator "NA RC"]
[PlyCount "49"]
[EventDate "2024.06.23"]
[EventType "swiss"]
[EventCountry "GEO"]
[SourceTitle "playchess.com"]
[Source "ChessBase"]
[SourceQuality "1"]
[TimeControl "5400+30"]

1. e4 {[%emt 0:00:04]} e5 {[%emt 0:00:05]} 2. Nf3 {[%emt 0:00:04]} Nc6 {[%emt 0:00:09]} 3. Bb5 {[%emt 0:00:06]} a6 {[%emt 0:00:09]} 4. Ba4 {[%emt 0:00:04]} Nf6 {[%emt 0:00:19]} 5. O-O {[%emt 0:00:16]} Be7 {[%emt 0:00:15]} 6. Re1 {[%emt 0:00:16]} b5 {[%emt 0:00:51]} 7. Bb3 {[%emt 0:00:07]} O-O {[%emt 0:00:13]} 8. h3 {[%emt 0:00:13]} d6 {[%emt 0:00:45]} 9. c3 {[%emt 0:00:47]} Re8 {[%emt 0:01:46]} 10. d4 {[%emt 0:09:07]} Bf8 {[%emt 0:01:44]} 11. Bg5 {[%emt 0:03:48]} g6 {[%emt 0:05:09]} 12. Bd5 {[%emt 0:12:10]} Nb8 {[%emt 0:08:54]} 13. Bxa8 {[%emt 0:00:23]} c6 {[%emt 0:00:06]} 14. dxe5 {[%emt 0:00:08]} Bg7 {[%emt 0:01:20]} 15. exf6 {[%emt 0:00:06]} Bxf6 {[%emt 0:00:07]} 16. Bxf6 {[%emt 0:00:05]} Qxf6 {[%emt 0:00:18]} 17. Qd4 {[%emt 0:00:11]} Qf4 {[%emt 0:01:05]} 18. Qd2 {[%emt 0:00:20]} Rxe4 {[%emt 0:00:43]} 19. Qxf4 {[%emt 0:00:05]} Rxf4 {[%emt 0:00:05]} 20. Re8+ {[%emt 0:00:04]} Kg7 {[%emt 0:00:08]} 21. Rxc8 {[%emt 0:00:05]} Nd7 {[%emt 0:00:30]} 22. Nbd2 {[%emt 0:00:14]} Nf6 {[%emt 0:00:26]} 23. Rxc6 {[%emt 0:00:26]} Ne8 {[%emt 0:03:19]} 24. Re1 {[%emt 0:00:13]} Nf6 {[%emt 0:06:39]} 25. Rxd6 {[%emt 0:00:19]} *